fUSD/lending_fUSD_20250314
["ID","MTS","AMOUNT","RATE_DAILY","PERIOD"]
[356152440,1741975833390,-500.0,0.00014,2]
[356152442,1741975833400,-500.0,0.00014,2]
[356152444,1741975833410,-500.0,0.00014,2]
[356152446,1741975833421,-500.0,0.00014,2]
[356152448,1741975833430,-500.0,0.00014,2]
[356152450,1741975833440,-500.0,0.00014,2]
[356152452,1741975833451,-500.0,0.00014,2]
[356152454,1741975833461,-500.0,0.00014,2]
[356152456,1741975833471,-500.0,0.00014,2]
[356152458,1741975833481,-500.0,0.00014,2]
[356152460,1741975833492,-500.0,0.00014,2]
[356152462,1741975833502,-500.0,0.00014,2]
[356152464,1741975833512,-500.0,0.00014,2]
[356152466,1741975833522,-500.0,0.00014,2]
[356152468,1741975833532,-500.0,0.00014,2]
[356152470,1741975833543,-500.0,0.00014,2]
[356152472,1741975833554,-500.0,0.00014,2]
[356152474,1741975833564,-500.0,0.00014,2]
[356152476,1741975833574,-500.0,0.00014,2]
[356152478,1741975833584,-500.0,0.00014,2]
[356152480,1741975833595,-500.0,0.00014,2]
[356152482,1741975833605,-500.0,0.00014,2]
[356152484,1741975833615,-500.0,0.00014,2]
[356152486,1741975833624,-500.0,0.00014,2]
[356152487,1741975833634,-500.0,0.00014,2]
[356152490,1741975833644,-500.0,0.00014,2]
[356152492,1741975833655,-500.0,0.00014,2]
[356152493,1741975833665,-500.0,0.00014,2]
[356152495,1741975833675,-500.0,0.00014,2]
[356152497,1741975833685,-500.0,0.00014,2]
[356152499,1741975833694,-500.0,0.00014,2]
[356152501,1741975833704,-500.0,0.00014,2]
[356152503,1741975833713,-500.0,0.00014,2]
[356152505,1741975833723,-500.0,0.00014,2]
[356152507,1741975833732,-500.0,0.00014,2]
[356152509,1741975833743,-500.0,0.00014,2]
[356152511,1741975833752,-500.0,0.00014,2]
[356152513,1741975833762,-500.0,0.00014,2]
[356152515,1741975833773,-500.0,0.00014,2]
[356152517,1741975833783,-500.0,0.00014,2]
[356152519,1741975833793,-500.0,0.00014,2]
[356152521,1741975833803,-500.0,0.00014,2]
[356152523,1741975833813,-500.0,0.00014,2]
[356152525,1741975833823,-500.0,0.00014,2]
[356152527,1741975833833,-500.0,0.00014,2]
[356152529,1741975833843,-500.0,0.00014,2]
[356152531,1741975833853,-500.0,0.00014,2]
[356152533,1741975833863,-500.0,0.00014,2]
[356152535,1741975833872,-500.0,0.00014,2]
[356152537,1741975833882,-500.0,0.00014,2]
[356152539,1741975833892,-500.0,0.00014,2]
[356152541,1741975833903,-500.0,0.00014,2]
[356152543,1741975833913,-500.0,0.00014,2]
[356152545,1741975833923,-500.0,0.00014,2]
[356152547,1741975833932,-500.0,0.00014,2]
[356152549,1741975833941,-500.0,0.00014,2]
[356152551,1741975833950,-500.0,0.00014,2]
[356152552,1741975833961,-500.0,0.00014,2]
[356152554,1741975833971,-500.0,0.00014,2]
[356152557,1741975833981,-500.0,0.00014,2]
[356152559,1741975833993,-500.0,0.00014,2]
[356152561,1741975834002,-500.0,0.00014,2]
[356152563,1741975834012,-500.0,0.00014,2]
[356152565,1741975834023,-500.0,0.00014,2]
[356152567,1741975834032,-500.0,0.00014,2]
[356152569,1741975834042,-500.0,0.00014,2]
[356152571,1741975834051,-500.0,0.00014,2]
[356152572,1741975834061,-500.0,0.00014,2]
[356152574,1741975834071,-500.0,0.00014,2]
[356152576,1741975834081,-500.0,0.00014,2]
[356152578,1741975834091,-500.0,0.00014,2]
[356152580,1741975834101,-500.0,0.00014,2]
[356152582,1741975834111,-500.0,0.00014,2]
[356152584,1741975834121,-566.0,0.00014,2]
[356152586,1741975834131,-3132.7569,0.00014,2]
[356152588,1741975834141,-4000.0,0.00014,11]
[356152590,1741975834150,-1413.3523,0.00014,2]
[356152592,1741975834162,-500.0,0.00014,2]
[356152594,1741975834172,-500.0,0.00014,2]
[356152596,1741975834181,-500.0,0.00014,2]
[356152598,1741975834191,-500.0,0.00014,2]
[356152600,1741975834201,-958.0,0.00014,2]
[356152602,1741975834211,-500.0,0.00014,2]
[356152604,1741975834221,-500.0,0.00014,2]
[356152606,1741975834231,-500.0,0.00014,2]
[356152607,1741975834243,-500.0,0.00014,2]
[356152608,1741975834252,-500.0,0.00014,2]
[356152609,1741975834263,-500.0,0.00014,2]
[356152610,1741975834273,-500.0,0.00014,2]
[356152612,1741975834283,-500.0,0.00014,2]
[356152614,1741975834293,-500.0,0.00014,2]
[356152616,1741975834303,-500.0,0.00014,2]
[356152618,1741975834313,-500.0,0.00014,2]
[356152620,1741975834326,-500.0,0.00014,2]
[356152622,1741975834337,-500.0,0.00014,2]
[356152624,1741975834348,-500.0,0.00014,2]
[356152626,1741975834358,-500.0,0.00014,2]
[356152628,1741975834368,-500.0,0.00014,2]
[356152630,1741975834379,-500.0,0.00014,2]
[356152632,1741975834390,-500.0,0.00014,2]
[356152634,1741975834401,-500.0,0.00014,2]
[356152635,1741975834411,-500.0,0.00014,2]
[356152636,1741975834421,-500.0,0.00014,2]
[356152637,1741975834431,-500.0,0.00014,2]
[356152638,1741975834441,-500.0,0.00014,2]
[356152639,1741975834451,-500.0,0.00014,2]
[356152640,1741975834462,-500.0,0.00014,2]
[356152641,1741975834472,-500.0,0.00014,2]
[356152642,1741975834482,-500.0,0.00014,2]
[356152643,1741975834493,-500.0,0.00014,2]
[356152644,1741975834503,-500.0,0.00014,2]
[356152645,1741975834512,-500.0,0.00014,2]
[356152646,1741975834523,-500.0,0.00014,2]
[356152647,1741975834758,-500.0,0.00014,2]
[356152648,1741975834785,-500.0,0.00014,2]
[356152649,1741975834795,-500.0,0.00014,2]
[356152650,1741975834804,-500.0,0.00014,2]
[356152651,1741975834813,-500.0,0.00014,2]
[356152652,1741975834823,-500.0,0.00014,2]
[356152653,1741975834832,-500.0,0.00014,2]
[356152654,1741975834841,-500.0,0.00014,2]
[356152655,1741975834851,-500.0,0.00014,2]
[356152656,1741975834860,-500.0,0.00014,2]
[356152657,1741975834869,-500.0,0.00014,2]
[356152658,1741975834879,-500.0,0.00014,2]
[356152659,1741975834888,-500.0,0.00014,2]
[356152660,1741975834897,-500.0,0.00014,2]
[356152661,1741975834907,-500.0,0.00014,2]
[356152662,1741975834916,-500.0,0.00014,2]
[356152663,1741975834926,-500.0,0.00014,2]
[356152664,1741975834935,-500.0,0.00014,2]
[356152665,1741975834945,-500.0,0.00014,2]
[356152666,1741975834953,-500.0,0.00014,2]
[356152667,1741975834962,-500.0,0.00014,2]
[356152668,1741975834971,-500.0,0.00014,2]
[356152669,1741975834980,-500.0,0.00014,2]
[356152670,1741975834990,-500.0,0.00014,2]
[356152671,1741975834998,-500.0,0.00014,2]
[356152672,1741975835007,-500.0,0.00014,2]
[356152673,1741975835016,-500.0,0.00014,2]
[356152674,1741975835025,-500.0,0.00014,2]
[356152675,1741975835035,-500.0,0.00014,2]
[356152676,1741975835044,-500.0,0.00014,2]
[356152677,1741975835052,-500.0,0.00014,2]
[356152678,1741975835061,-500.0,0.00014,2]
[356152679,1741975835070,-500.0,0.00014,2]
[356152680,1741975835079,-500.0,0.00014,2]
[356152681,1741975835087,-500.0,0.00014,2]
[356152682,1741975835096,-500.0,0.00014,2]
[356152683,1741975835105,-500.0,0.00014,2]
[356152684,1741975835114,-500.0,0.00014,2]
[356152685,1741975835123,-500.0,0.00014,2]
[356152686,1741975835132,-500.0,0.00014,2]
[356152687,1741975835140,-500.0,0.00014,2]
[356152688,1741975835149,-500.0,0.00014,2]
[356152689,1741975835158,-500.0,0.00014,2]
[356152690,1741975835167,-500.0,0.00014,2]
[356152691,1741975835176,-500.0,0.00014,2]
[356152692,1741975835184,-500.0,0.00014,2]
[356152693,1741975835193,-500.0,0.00014,2]
[356152694,1741975835202,-500.0,0.00014,2]
[356152695,1741975835211,-500.0,0.00014,2]
[356152696,1741975835219,-500.0,0.00014,2]
[356152697,1741975835228,-500.0,0.00014,2]
[356152698,1741975835242,-500.0,0.00014,2]
[356152699,1741975835250,-500.0,0.00014,2]
[356152700,1741975835259,-500.0,0.00014,2]
[356152701,1741975835268,-500.0,0.00014,2]
[356152702,1741975835277,-500.0,0.00014,2]
[356152703,1741975835287,-500.0,0.00014,2]
[356152704,1741975835295,-500.0,0.00014,2]
[356152705,1741975835304,-500.0,0.00014,2]
[356152706,1741975835315,-500.0,0.00014,2]
[356152707,1741975835325,-500.0,0.00014,2]
[356152708,1741975835334,-500.0,0.00014,2]
[356152709,1741975835343,-500.0,0.00014,2]
[356152710,1741975835352,-500.0,0.00014,2]
[356152711,1741975835361,-500.0,0.00014,2]
[356152712,1741975835370,-500.0,0.00014,2]
[356152713,1741975835380,-500.0,0.00014,2]
[356152714,1741975835390,-500.0,0.00014,2]
[356152715,1741975835400,-500.0,0.00014,2]
[356152716,1741975835409,-1546.0532,0.00014,2]
[356152717,1741975835419,-500.0,0.00014,2]
[356152718,1741975835428,-500.0,0.00014,2]
[356152719,1741975835439,-500.0,0.00014,2]
[356152720,1741975835448,-500.0,0.00014,2]
[356152721,1741975835458,-500.0,0.00014,2]
[356152722,1741975835468,-500.0,0.00014,2]
[356152723,1741975835477,-500.0,0.00014,2]
[356152724,1741975835487,-500.0,0.00014,2]
[356152725,1741975835497,-500.0,0.00014,2]
[356152726,1741975835506,-500.0,0.00014,2]
[356152727,1741975835516,-500.0,0.00014,2]
[356152728,1741975835525,-500.0,0.00014,2]
[356152729,1741975835535,-500.0,0.00014,2]
[356152730,1741975835544,-500.0,0.00014,2]
[356152731,1741975835554,-500.0,0.00014,2]
[356152732,1741975835563,-500.0,0.00014,2]
[356152733,1741975835572,-500.0,0.00014,2]
[356152734,1741975835582,-500.0,0.00014,2]
[356152735,1741975835592,-500.0,0.00014,2]
[356152736,1741975835602,-500.0,0.00014,2]
[356152737,1741975835611,-500.0,0.00014,2]
[356152738,1741975835620,-500.0,0.00014,2]
[356152739,1741975835629,-500.0,0.00014,2]
[356152740,1741975835639,-500.0,0.00014,2]
[356152741,1741975835648,-500.0,0.00014,2]
[356152742,1741975835657,-500.0,0.00014,2]
[356152743,1741975835667,-500.0,0.00014,2]
[356152744,1741975835676,-500.0,0.00014,2]
[356152745,1741975835685,-500.0,0.00014,2]
[356152746,1741975835694,-500.0,0.00014,2]
[356152747,1741975835704,-500.0,0.00014,2]
[356152748,1741975835713,-500.0,0.00014,2]
[356152749,1741975835722,-500.0,0.00014,2]
[356152750,1741975835731,-500.0,0.00014,2]
[356152751,1741975835741,-500.0,0.00014,2]
[356152752,1741975835751,-500.0,0.00014,2]
[356152753,1741975835760,-500.0,0.00014,2]
[356152754,1741975835769,-500.0,0.00014,2]
[356152755,1741975835779,-500.0,0.00014,2]
[356152756,1741975835788,-500.0,0.00014,2]
[356152757,1741975835798,-500.0,0.00014,2]
[356152758,1741975835807,-500.0,0.00014,2]
[356152759,1741975835816,-500.0,0.00014,2]
[356152760,1741975835826,-500.0,0.00014,2]
[356152761,1741975835835,-500.0,0.00014,2]
[356152762,1741975835844,-500.0,0.00014,2]
[356152763,1741975835853,-500.0,0.00014,2]
[356152764,1741975835863,-500.0,0.00014,2]
[356152765,1741975835872,-500.0,0.00014,2]
[356152766,1741975835882,-500.0,0.00014,2]
[356152767,1741975835891,-500.0,0.00014,2]
[356152768,1741975835901,-500.0,0.00014,2]
[356152769,1741975835910,-500.0,0.00014,2]
[356152770,1741975835920,-500.0,0.00014,2]
[356152771,1741975835929,-500.0,0.00014,2]
[356152772,1741975835938,-500.0,0.00014,2]
[356152773,1741975835947,-500.0,0.00014,2]
[356152774,1741975835957,-500.0,0.00014,2]
[356152775,1741975835966,-500.0,0.00014,2]
[356152776,1741975835976,-500.0,0.00014,2]
[356152777,1741975835985,-500.0,0.00014,2]
[356152778,1741975835997,-500.0,0.00014,2]
[356152779,1741975836006,-500.0,0.00014,2]
[356152780,1741975836016,-500.0,0.00014,2]
[356152781,1741975836026,-500.0,0.00014,2]
[356152782,1741975836035,-500.0,0.00014,2]
[356152783,1741975836044,-500.0,0.00014,2]
[356152784,1741975836053,-500.0,0.00014,2]
[356152785,1741975836064,-500.0,0.00014,2]
[356152786,1741975836073,-500.0,0.00014,2]
[356152787,1741975836082,-500.0,0.00014,2]
[356152788,1741975836092,-500.0,0.00014,2]
[356152789,1741975836102,-500.0,0.00014,2]
[356152790,1741975836112,-500.0,0.00014,2]
[356152791,1741975836121,-500.0,0.00014,2]
[356152792,1741975836131,-500.0,0.00014,2]
[356152793,1741975836140,-500.0,0.00014,2]
[356152794,1741975836150,-500.0,0.00014,2]
[356152795,1741975836160,-500.0,0.00014,2]
[356152796,1741975836170,-956.0,0.00014,2]
[356152797,1741975836180,-175.98625507,0.0001408,2]
[356152798,1741975836190,-203.0,0.000141,2]
[356152799,1741975836199,-587.0,0.00014107,2]
[356152800,1741975836209,-162.05,0.00014145,2]
[356152801,1741975836219,-500.0,0.00014301,2]
[356152802,1741975836228,-7618.12,0.00014384,2]
[356152803,1741975836238,-9895.06484852,0.0001439,2]
[356152804,1741975836252,-151.3,0.00014614,2]
[356152805,1741975836261,-203.0,0.0001472,2]
[356152806,1741975836271,-942.45226479,0.000148,2]
[356152807,1741975836280,-1313.35,0.00014809,2]
[356152808,1741975836290,-7297.41759001,0.00014856,2]
[356152809,1741975836300,-115018.72219023,0.000149,2]
[356152810,1741975836310,-1349.04022856,0.000149,2]
[356152811,1741975836321,-1965.22265218,0.00015,2]
[356152812,1741975836331,-18190.31963006,0.00015,2]
[356152813,1741975836341,-30000.0,0.00015,2]
[356152814,1741975836350,-30000.0,0.00015,2]
[356152815,1741975836360,-7649.34886831,0.00015,2]
[356152816,1741975836370,-5354.14783706,0.00015,2]
[356152817,1741975836379,-400.0,0.00015,2]
[356152818,1741975836389,-300.0,0.00015068,2]
[356152819,1741975836399,-7618.12,0.00015068,2]
[356152820,1741975836409,-1007.06151299,0.0001517,2]
[356152821,1741975836418,-23417.4284,0.00015196,2]
[356152822,1741975836428,-1215.0,0.00015296,5]
[356152823,1741975836438,-1215.0,0.00015296,5]
[356152824,1741975836448,-1217.0,0.00015296,5]
[356152825,1741975836457,-1215.0,0.00015296,5]
[356152826,1741975836467,-1517.64,0.000153,2]
[356152827,1741975836478,-7407.94,0.0001531,2]
[356152828,1741975836487,-19999.99,0.0001531,2]
[356152829,1741975836497,-28320.08,0.0001531,2]
[356152830,1741975836507,-1136.63,0.0001531,2]
[356152831,1741975836516,-205.0,0.0001534,2]
[356152832,1741975836526,-203.0,0.0001534,2]
[356152833,1741975836536,-150.0,0.00015397,2]
[356152834,1741975836545,-500.0,0.00015397,2]
[356152835,1741975836555,-16018.00580574,0.000154,2]
[356152836,1741975836565,-487.11882438,0.000154,2]
[356152837,1741975836575,-150.0,0.00015424,2]
[356152838,1741975836585,-150.0,0.00015452,2]
[356152839,1741975836596,-1000.0,0.00015458,2]
[356152840,1741975836607,-150.0,0.00015479,2]
[356152841,1741975836617,-823.0,0.00015491,2]
[356152842,1741975836627,-192.51714004,0.00015507,2]
[356152843,1741975836636,-87557.62350587,0.00015516,2]
[356152844,1741975836646,-500.0,0.00015671,2]
[356152845,1741975836655,-162.05,0.00015716,2]
[356152846,1741975836665,-7618.12,0.00015753,2]
[356152847,1741975836675,-205.0,0.0001596,2]
[356152848,1741975836684,-203.0,0.0001596,2]
[356152849,1741975836694,-150.0,0.00015996,2]
[356152850,1741975836704,-4530.45748993,0.00016,2]
[356152851,1741975836714,-30000.0,0.00016,2]
[356152852,1741975836724,-30000.0,0.00016,2]
[356152853,1741975836733,-2000.0,0.00016,2]
[356152854,1741975836743,-2000.0,0.0001601,2]
[356152855,1741975836752,-3758.139252,0.0001602,2]
[356152856,1741975836763,-9999.99,0.00016116,2]
[356152857,1741975836773,-200.0,0.0001634,2]
[356152858,1741975836783,-11944.96,0.00016411,2]
[356152859,1741975836799,-156.0,0.00016427,3]
[356152860,1741975836809,-115018.72219016,0.00016435,2]
[356152861,1741975836818,-150.0,0.00016438,2]
[356152862,1741975836828,-202.22,0.00016438,2]
[356152863,1741975836837,-300.0,0.00016438,2]
[356152864,1741975836847,-7618.12,0.00016438,2]
[356152865,1741975836856,-524.29,0.00016493,30]
[356152866,1741975836865,-1660.99,0.000165,7]
[356152867,1741975836874,-3132.7569,0.000165,2]
[356152868,1741975836883,-1413.3523,0.000165,2]
[356152869,1741975836893,-1546.0532,0.000165,2]
[356152870,1741975836903,-500.0,0.0001655,2]
[356152871,1741975836912,-205.0,0.0001658,2]
[356152872,1741975836922,-203.0,0.0001658,2]
[356152873,1741975836931,-221.05,0.00016712,2]
[356152874,1741975836941,-500.0,0.00016783,2]
[356152875,1741975836950,-500.0,0.00016783,2]
[356152876,1741975836959,-500.0,0.00016783,2]
[356152877,1741975836968,-942.45226472,0.00016841,2]
[356152878,1741975836978,-150.0,0.00016871,2]
[356152879,1741975836987,-74796.23124693,0.0001688,2]
[356152880,1741975836998,-450.0,0.00017,2]
[356152881,1741975837007,-1000.0,0.00017004,2]
[356152882,1741975837017,-1313.35,0.00017005,2]
[356152883,1741975837026,-1152.0,0.00017011,2]
[356152884,1741975837035,-500.0,0.00017041,2]
[356152885,1741975837045,-158.31398188,0.00017091,2]
[356152886,1741975837054,-500.0,0.00017091,2]
[356152887,1741975837063,-452.66042233,0.00017091,2]
[356152888,1741975837073,-152.48533066,0.00017091,2]
[356152889,1741975837082,-645.56924642,0.00017091,2]
[356152890,1741975837091,-151.30778702,0.00017091,2]
[356152891,1741975837101,-500.0,0.00017091,2]
[356152892,1741975837111,-87557.62350587,0.00017132,2]
[356152893,1741975837122,-205.0,0.000172,2]
[356152894,1741975837132,-203.0,0.000172,2]
[356152895,1741975837142,-162.05,0.00017288,2]
[356152896,1741975837151,-1349.0402285,0.00017296,2]
[356152897,1741975837161,-150.0,0.00017304,2]
[356152898,1741975837171,-591.0,0.00017698,2]
[356152899,1741975837181,-3200.6179638,0.00017698,2]
[356152900,1741975837191,-150.0,0.00017736,2]
[356152901,1741975837200,-600.0,0.00017808,2]
[356152902,1741975837210,-205.0,0.0001782,2]
[356152903,1741975837219,-203.0,0.0001782,2]
[356152904,1741975837228,-114448.41636703,0.00017969,2]
[356152905,1741975837252,-570.30582313,0.00017969,2]
[356152906,1741975837261,-505.64912877,0.00018,2]
[356152907,1741975837273,-555.14206772,0.00018,2]
[356152908,1741975837286,-79.54791669,0.00018,2]
[356152909,1741975837295,-4842.68408156,0.00018,2]
[356152910,1741975837306,-723.53013871,0.00018,2]
[356152911,1741975837319,-633.91710109,0.00018,2]
[356152912,1741975837330,-603.91824408,0.00018,2]
[356152919,1741975838134,-31417.98492473,0.00018,2]
[356152920,1741975838144,-23745.21639887,0.00018,2]
[356152921,1741975838154,-514.297339,0.00018,2]
[356152922,1741975838166,-200.0,0.00018082,2]
[356152923,1741975838175,-1705.32770858,0.000181,2]
[356152924,1741975838184,-500.0,0.00018137,2]
[356152925,1741975838195,-150.0,0.00018169,2]
[356152926,1741975838205,-3431.27521688,0.000183,2]
[356152927,1741975838215,-70804.3590873,0.00018356,2]
[356152928,1741975838227,-1693.58,0.00018356,2]
[356152929,1741975838239,-1921.45432012,0.00018356,2]
[356152930,1741975838254,-437.74276958,0.00018356,2]
[356152931,1741975838266,-492.04005655,0.00018356,2]
[356152932,1741975838277,-7504.60376645,0.00018356,2]
[356152933,1741975838289,-205.0,0.0001844,2]
[356152934,1741975838299,-203.0,0.0001844,2]
[356152935,1741975838308,-212.0,0.0001844,2]
[356152936,1741975838318,-1000.0,0.0001855,2]
[356152937,1741975838328,-153.87,0.000186,2]
[356152938,1741975838338,-153.87,0.000186,2]
[356152939,1741975838348,-153.87,0.000186,2]
[356152940,1741975838357,-150.0,0.00018601,2]
[356152941,1741975838366,-1162.83897296,0.0001868,2]
[356152942,1741975838378,-450.16102704,0.0001868,2]
[356152943,1741975838388,-554.4138254,0.00018747,2]
[356152944,1741975838399,-299.01921885,0.00018747,2]
[356152945,1741975838419,-740.79258,0.00018747,2]
[356152965,1741975840294,-919.40116331,0.00018747,2]
[356152967,1741975840306,-519.99999999,0.00018747,2]
[356152973,1741975840349,-2041.41284595,0.00018747,2]
[356152979,1741975840406,-4875.745,0.00018747,2]
[356152992,1741975840518,-1123.14676181,0.00018747,2]
[356152994,1741975840530,-394.3849896,0.00018747,2]
[356152997,1741975840547,-616.92,0.00018747,2]
[356153006,1741975840630,-1920.0,0.00018747,2]
[356153013,1741975840686,-73552.38712096,0.00018747,2]
[356153015,1741975840695,-222.0,0.000188,2]
[356153017,1741975840705,-156.0,0.00018855,3]
[356153019,1741975840715,-162.05,0.0001886,2]
[356153021,1741975840725,-942.45226472,0.00018883,2]
[356153023,1741975840734,-42184.83258211,0.000189,2]
[356153050,1741975843292,-5498.14470342,0.000189,2]
[356153051,1741975843305,-53517.75296826,0.000189,2]
[356153052,1741975843314,-1986.75842133,0.000189,2]
[356153053,1741975843325,-77408.2288223,0.00019,2]
[356153054,1741975843335,-961.61,0.00019,2]
[356153055,1741975843345,-5536.10109654,0.00019,2]
[356153056,1741975843355,-893.84681126,0.00019,2]
[356153057,1741975843364,-4000.0,0.00019,11]
[356153058,1741975843374,-500.0,0.00019,2]
[356153059,1741975843384,-500.0,0.00019,2]
[356153060,1741975843394,-1000.0,0.0001902,2]
[356153061,1741975843404,-150.0,0.00019034,2]
[356153062,1741975843414,-205.0,0.0001906,2]
[356153063,1741975843424,-203.0,0.0001906,2]
[356153064,1741975843434,-212.0,0.0001906,2]
[356153065,1741975843443,-6136.67318392,0.00019178,7]
[356153066,1741975843455,-6211.96386048,0.00019178,7]
[356153067,1741975843465,-3240.88,0.00019178,2]
[356153068,1741975843475,-500.0,0.000192,2]
[356153069,1741975843485,-1200.0,0.000192,2]
[356153070,1741975843496,-510.66085101,0.000192,2]
[356153071,1741975843506,-600.0,0.000192,2]
[356153072,1741975843515,-1313.35,0.00019202,2]
[356153073,1741975843525,-500.0,0.00019233,2]
[356153074,1741975843534,-500.0,0.00019397,2]
[356153075,1741975843544,-150.0,0.00019466,2]
[356153076,1741975843554,-115018.72219016,0.00019504,2]
[356153077,1741975843563,-500.0,0.00019573,2]
[356153078,1741975843574,-160.28823808,0.00019573,2]
[356153079,1741975843583,-86084.34081893,0.000196,2]
[356153080,1741975843595,-596.13,0.000196,2]
[356153081,1741975843607,-258.4,0.000196,2]
[356153082,1741975843618,-826.79727951,0.000196,2]
[356153083,1741975843630,-817.1986,0.000196,2]
[356153085,1741975843641,-1606.0168579,0.000196,2]
[356153087,1741975843652,-6373.00058143,0.000196,2]
[356153114,1741975843957,-9061.50934918,0.000196,2]
[356153115,1741975843968,-33416.039998,0.000196,2]
[356153116,1741975843979,-6076.0,0.000196,2]
[356153117,1741975843990,-16711.99245288,0.000196,2]
[356153118,1741975844003,-1297.80315299,0.000196,2]
[356153120,1741975846210,-1444.89300382,0.000196,2]
[356153121,1741975846267,-59222.5447025,0.000196,2]
[356153122,1741975846278,-3299.15369222,0.0001961,2]
[356153123,1741975846287,-500.0,0.0001961,2]
[356153124,1741975846297,-503.75407807,0.0001961,2]
[356153125,1741975846306,-500.0,0.0001961,2]
[356153126,1741975846317,-500.0,0.0001961,2]
[356153127,1741975846327,-500.0,0.0001961,2]
[356153128,1741975846337,-500.0,0.0001961,2]
[356153129,1741975846346,-500.0,0.0001961,2]
[356153130,1741975846355,-500.0,0.0001961,2]
[356153131,1741975846365,-588.67260619,0.0001961,2]
[356153132,1741975846374,-500.0,0.0001961,2]
[356153133,1741975846383,-510.33414533,0.0001961,2]
[356153134,1741975846393,-500.0,0.0001961,2]
[356153135,1741975846403,-500.0,0.0001961,2]
[356153136,1741975846413,-500.0,0.0001961,2]
[356153137,1741975846423,-500.0,0.0001961,2]
[356153138,1741975846432,-500.0,0.0001961,2]
[356153139,1741975846442,-500.0,0.0001961,2]
[356153140,1741975846451,-500.0,0.0001961,2]
[356153141,1741975846461,-500.0,0.0001961,2]
[356153142,1741975846471,-500.0,0.0001961,2]
[356153143,1741975846482,-500.0,0.0001961,2]
[356153144,1741975846492,-500.0,0.0001961,2]
[356153145,1741975846502,-500.0,0.0001961,2]
[356153146,1741975846512,-795.36466641,0.0001961,2]
[356153147,1741975846522,-500.0,0.0001961,2]
[356153148,1741975846531,-500.0,0.0001961,2]
[356153149,1741975846540,-500.0,0.0001961,2]
[356153150,1741975846550,-500.0,0.0001961,2]
[356153151,1741975846561,-500.0,0.0001961,2]
[356153152,1741975846571,-700.0,0.0001961,2]
[356153153,1741975846580,-700.0,0.0001961,2]
[356153154,1741975846590,-700.0,0.0001961,2]
[356153156,1741975846600,-700.0,0.0001961,2]
[356153158,1741975846610,-700.0,0.0001961,2]
[356153159,1741975846619,-700.0,0.0001961,2]
[356153160,1741975846629,-700.0,0.0001961,2]